Workbook

Sheet Final
B5: Calculated: | C5: CJM | F5: Date: | G5: 2018-11-07 | M5: Stage Review Submission: | N5: Stage 2
B6: Checked: | C6: JDC | F6: Date: | G6: 2018-11-07 | M6: PID/Job No.: | N6: 102858
B7: Concurred: | F7: Date: | M7: Bridge No.: | N7: POR-76-2118
B8: Back Checked: | F8: Date: | M8: SFN: | N8: 6702880
B9: Released: | F9: Date:
B10: Project: | C10: POR-76-1658/2118
B11: Subject: | C11: Spread check and Discharge Calculations, Final Condition
M12: (Input values are shown underlined and in italics.)
M13: References
A14: Drainage and Gutter Spread Calculations
B16: General Data
C18: Zone | E18: A | I18: (Fig. 1101-3) | K18: a | L18: =IF($E$18="A",VLOOKUP($E$19,Tables!ZoneA,2),IF($E$18="B",VLOOKUP($E$19,Tables!ZoneB,2),IF($E$18="C",VLOOKUP($E$19,Tables!ZoneC,2),IF($E$18="D",VLOOKUP($E$19,Tables!ZoneD,2))))) -> 46.184
C19: Return | E19: 2 | F19: yrs | G19: =IF(E19=10,"Freeways",IF(E19=5,"High volume highways.",IF(E19=2,"All other highways.","Check frequency."))) -> All other highways. | I19: (1103.2) | K19: b | L19: =IF($E$18="A",VLOOKUP($E$19,Tables!ZoneA,3),IF($E$18="B",VLOOKUP($E$19,Tables!ZoneB,3),IF($E$18="C",VLOOKUP($E$19,Tables!ZoneC,3),IF($E$18="D",VLOOKUP($E$19,Tables!ZoneD,3))))) -> 9
C20: Pvmt. Spread | E20: 6 | F20: Max. Allow. | I20: (1103.2) | K20: c | L20: =IF($E$18="A",VLOOKUP($E$19,Tables!ZoneA,4),IF($E$18="B",VLOOKUP($E$19,Tables!ZoneB,4),IF($E$18="C",VLOOKUP($E$19,Tables!ZoneC,4),IF($E$18="D",VLOOKUP($E$19,Tables!ZoneD,4))))) -> 0.859
C22: Vertical Curve 1
D23: PVI-1 | F23: L | G23: G1 | H23: G2 | I23: e
D24: Station | E24: Elev. | G24: Back | H24: Ahead
D25: 5050.5 | E25: 1001.79 | F25: 670 | G25: 0.0426 | H25: -0.022 | I25: =(H25-G25)*F25/8 -> -5.41025
D27: PVC-1 | F27: PVT-1 | H27: =IF(H25-G25<0,"High Point",IF(H25-G25>0,"Low Point","")) -> High Point
D28: Station | E28: Elev. | F28: Station | G28: Elev. | H28: Station | I28: Elev.
D29: 4700 | E29: 986.86 | F29: 5385.5 | G29: 994.44 | H29: =IF(AND(G25>0,H25>0),F29,IF(AND(G25<0,H25<0),D29,D29+F25*G25/-(H25-G25))) -> 5141.826625 | I29: =IF(H29<$D$29,$E$29+$G$25*(H29-$D$29),IF(AND(H29>=$D$29,H29<=$F$29),$E$29+$G$25*(H29-$D$29)+$I$25*((H29-$D$29)/$F$25*2)^2,IF(AND(H29>$F$29,H29<$K$29),$E$25+$H$25*(H29-$D$25),IF(AND(H29>=$K$29,H29<=$M$29),$L$29+$N$25*(H29-$K$29)+$P$25*((H29-$K$29)/$M$25*2)^2,$L$25+$O$25*(H29-$K$25))))) -> 996.2709071
B31: General Formulae
C33: Hydrology
C34: to = | D34: 1.8 ( 1.1 - C ) L1/2 / s1/3 ≥ 10 min where "s" is in percent
C35: i = | D35: a / ( t + b )c
C36: Q = | D36: C i A
C37: Z = | D37: 1 / Cross Slope
C38: Q = | D38: 0.56 ( Z / n ) s1/2 d8/3 for triangular channel flow.
C39: d = | D39: { Q / [ 0.56 ( Z / n ) s1/2 ] }3/8 where "s" is in ft/ft
C40: SG = | D40: Z d
C42: Neenah Inlet Capacity
C43: Qi = | D43: K d5/3 | E43: Inlet capacity. | K43: (Neenah Foundry Co., Inlet Grate Capacities, p. ii)
C44: K = | D44: 35 | E44: Inlet capacity factor. | K44: (Neenah, Inlet Capacities, No. R-3924, p. 37)
B47: Tabulated Data
C49: Region | E49: Input Data | U49: Flow and Gutter Spread | AE49: Neenah Inlets
E50: Drainage Area | M50: Grade | P50: Roadway Data | S50: Parameters | U50: Critical Point | V50: Hydrological Data | AB50: Spread Data | AE50: Inlet Capacity Factor | AF50: Inlet Capacity | AG50: Inlets Required
E51: Begin Station | F51: End Station | G51: Length | H51: Begin Width | I51: End Width | J51: Average Width | K51: Drainage Area | M51: Begin Elevation | N51: End Elevation | O51: Average Longitudinal Grade | P51: Cross Slope | Q51: Curb Height | R51: Distance from Curb to Edge of Lane | S51: Roughness Coefficient | T51: Runoff Coefficient | V51: Concentration Time | W51: Rainfall Intensity | X51: Drainage Area | Y51: Discharge | Z51: Previous Discharge | AA51: Total Discharge | AB51: Average Longitudinal Grade | AC51: Depth at Curb | AD51: Spread
C52: Variable | G52: L | H52: W1 | I52: W2 | J52: W | K52: L W | P52: Sx | S52: n | T52: C | V52: to | W52: i | X52: A | Y52: Q | Z52: Qp | AA52: Qt | AB52: s | AC52: d | AD52: SG | AE52: K | AF52: Qi
C53: Units | G53: ft | H53: ft | I53: ft | J53: ft | K53: ft2 | L53: acres | O53: ft/ft | P53: ft/ft | Q53: in | R53: ft | V53: min | W53: in/hr | X53: acres | Y53: cfs | Z53: cfs | AA53: cfs | AB53: ft/ft | AC53: ft | AD53: ft | AF53: cfs | AG53: ea
C54: Median Side of the Bridge Forward - Final Condition
C55: From High Point | E55: =H29 -> 5141.826625 | F55: =60112.41+25 -> 60137.41 | G55: =ABS(E55-F55) -> 54995.58337 | H55: 13.75 | I55: 13.75 | J55: 13.75 | K55: =G55*J55 -> 756189.2714 | L55: =ROUND(K55*2.2957*10^-5,4) -> 17.3598 | M55: =ROUND(IF(E55<$D$29,$E$29+$G$25*(E55-$D$29),IF(AND(E55>=$D$29,E55<=$F$29),$E$29+$G$25*(E55-$D$29)+$I$25*((E55-$D$29)/$F$25*2)^2,IF(AND(E55>$F$29,E55<$K$29),$E$25+$H$25*(E55-$D$25),IF(AND(E55>=$K$29,E55<=$M$29),$L$29+$N$25*(E55-$K$29)+$P$25*((E55-$K$29)/$M$25*2)^2,$L$25+$O$25*(E55-$K$25))))),3) -> 996.271 | N55: 0 | O55: =ROUND((M55-N55)/G55,4) -> 0.0181 | P55: 0.04 | Q55: 6 | R55: 12 | S55: 0.015 | T55: 0.9 | U55: =IF(M55=MIN(M55:N55),E55,F55) -> 60137.41 | V55: =MAX(ROUND(1.8*(1.1-T55)*G55^(1/2)/(ABS(O55)*100)^(1/3),3),10) -> 69.275 | W55: =ROUND($L$18/(V55+$L$19)^$L$20,3) -> 1.091 | X55: =L55 -> 17.3598 | Y55: =ROUND(T55*W55*X55,3) -> 17.046 | Z55: 0 | AA55: =SUM(Y55:Z55) -> 17.046 | AB55: =ABS(O55) -> 0.0181 | AC55: =ROUND((AA55/(0.56*(1/P55)/S55*AB55^(1/2)))^(3/8),3) -> 0.473 | AD55: =(1/P55)*AC55 -> 11.825 | AE55: =$D$44 -> 35 | AF55: =AE55*AC55^(5/3) -> 10.05008988 | AG55: =CEILING(AA55/AF55,1) -> 2
C56: to End/A.S.
C58: Median Side of the Bridge Back - Final Condition
C59: HP Bk | E59: =H29 -> 5141.826625 | F59: =59798.5-25 -> 59773.5 | G59: =ABS(F59-E59) -> 54631.67337 | H59: 13.75 | I59: 13.75 | J59: 13.75 | K59: =G59*J59 -> 751185.5089 | L59: =ROUND(K59*2.2957*10^-5,4) -> 17.245 | M59: =ROUND(IF(E59<$D$29,$E$29+$G$25*(E59-$D$29),IF(AND(E59>=$D$29,E59<=$F$29),$E$29+$G$25*(E59-$D$29)+$I$25*((E59-$D$29)/$F$25*2)^2,IF(AND(E59>$F$29,E59<$K$29),$E$25+$H$25*(E59-$D$25),IF(AND(E59>=$K$29,E59<=$M$29),$L$29+$N$25*(E59-$K$29)+$P$25*((E59-$K$29)/$M$25*2)^2,$L$25+$O$25*(E59-$K$25))))),3) -> 996.271 | N59: 0 | O59: =ROUND((M59-N59)/G59,4) -> 0.0182 | P59: 0.04 | Q59: 6 | R59: 12 | S59: 0.015 | T59: 0.9 | U59: =F59 -> 59773.5 | V59: =MAX(ROUND(1.8*(1.1-T59)*G59^(1/2)/(ABS(O59)*100)^(1/3),3),10) -> 68.918 | W59: =ROUND($L$18/(V59+$L$19)^$L$20,3) -> 1.095 | X59: =L59 -> 17.245 | Y59: =ROUND(T59*W59*X59,3) -> 16.995 | Z59: 0 | AA59: =SUM(Y59:Z59) -> 16.995 | AB59: =ABS(O59) -> 0.0182 | AC59: =ROUND((AA59/(0.56*(1/P59)/S59*AB59^(1/2)))^(3/8),3) -> 0.472 | AD59: =(1/P59)*AC59 -> 11.8 | AE59: =$D$44 -> 35 | AF59: =AE59*AC59^(5/3) -> 10.01470226 | AG59: =CEILING(AA59/AF59,1) -> 2
C60: to End/A.S.
B62: LEFT | C62: Outside Side of the Bridge Forward Abutment - Final Condition
C63: From High Point | E63: =H29 -> 5141.826625 | F63: 5137.43 | G63: =ABS(E63-F63) -> 4.396625387 | H63: 14.5 | I63: 14.5 | J63: =AVERAGE(H63:I63) -> 14.5 | K63: =G63*J63 -> 63.75106811 | L63: =ROUND(K63*2.2957*10^-5,4) -> 0.0015 | M63: =ROUND(IF(E63<$D$29,$E$29+$G$25*(E63-$D$29),IF(AND(E63>=$D$29,E63<=$F$29),$E$29+$G$25*(E63-$D$29)+$I$25*((E63-$D$29)/$F$25*2)^2,IF(AND(E63>$F$29,E63<$K$29),$E$25+$H$25*(E63-$D$25),IF(AND(E63>=$K$29,E63<=$M$29),$L$29+$N$25*(E63-$K$29)+$P$25*((E63-$K$29)/$M$25*2)^2,$L$25+$O$25*(E63-$K$25))))),3) -> 996.271 | N63: 996.27 | O63: =ROUND((M63-N63)/G63,4) -> 0.0002 | P63: 0.016 | Q63: 4 | R63: 4 | S63: 0.015 | T63: 0.9 | U63: =IF(M63=MIN(M63:N63),E63,F63) -> 5137.43 | V63: =MAX(ROUND(1.8*(1.1-T63)*G63^(1/2)/(ABS(O63)*100)^(1/3),3),10) -> 10 | W63: =ROUND($L$18/(V63+$L$19)^$L$20,3) -> 3.682 | X63: =L63 -> 0.0015 | Y63: =ROUND(T63*W63*X63,3) -> 0.005 | Z63: 0 | AA63: =SUM(Y63:Z63) -> 0.005 | AB63: =ABS(O63) -> 0.0002 | AC63: =ROUND((AA63/(0.56*(1/P63)/S63*AB63^(1/2)))^(3/8),3) -> 0.037 | AD63: =(1/P63)*AC63 -> 2.3125 | AE63: =$D$44 -> 35 | AF63: =AE63*AC63^(5/3) -> 0.143792947 | AG63: =CEILING(AA63/AF63,1) -> 1
C64: to End/A.S.
C66: Outside Side of the Bridge Rear Abutment - Final Condition
C67: HP Bk | E67: =H29 -> 5141.826625 | F67: 4854.02 | G67: =ABS(F67-E67) -> 287.8066254 | H67: 14.5 | I67: 14.5 | J67: =AVERAGE(H67:I67) -> 14.5 | K67: =G67*J67 -> 4173.196068 | L67: =ROUND(K67*2.2957*10^-5,4) -> 0.0958 | M67: =ROUND(IF(E67<$D$29,$E$29+$G$25*(E67-$D$29),IF(AND(E67>=$D$29,E67<=$F$29),$E$29+$G$25*(E67-$D$29)+$I$25*((E67-$D$29)/$F$25*2)^2,IF(AND(E67>$F$29,E67<$K$29),$E$25+$H$25*(E67-$D$25),IF(AND(E67>=$K$29,E67<=$M$29),$L$29+$N$25*(E67-$K$29)+$P$25*((E67-$K$29)/$M$25*2)^2,$L$25+$O$25*(E67-$K$25))))),3) -> 996.271 | N67: 992.278 | O67: =ROUND((M67-N67)/G67,4) -> 0.0139 | P67: 0.016 | Q67: 4 | R67: 4 | S67: 0.015 | T67: 0.9 | U67: =F67 -> 4854.02 | V67: =MAX(ROUND(1.8*(1.1-T67)*G67^(1/2)/(ABS(O67)*100)^(1/3),3),10) -> 10 | W67: =ROUND($L$18/(V67+$L$19)^$L$20,3) -> 3.682 | X67: =L67 -> 0.0958 | Y67: =ROUND(T67*W67*X67,3) -> 0.317 | Z67: 0 | AA67: =SUM(Y67:Z67) -> 0.317 | AB67: =ABS(O67) -> 0.0139 | AC67: =ROUND((AA67/(0.56*(1/P67)/S67*AB67^(1/2)))^(3/8),3) -> 0.079 | AD67: =(1/P67)*AC67 -> 4.9375 | AE67: =$D$44 -> 35 | AF67: =AE67*AC67^(5/3) -> 0.5090727649 | AG67: =CEILING(AA67/AF67,1) -> 1
C68: to End/A.S.
B70: RIGHT | C70: Outside Side of the Bridge Forward Abutment - Final Condition
C71: From High Point | E71: =H29 -> 5141.826625 | F71: 5137.43 | G71: =ABS(E71-F71) -> 4.396625387 | H71: 14.5 | I71: 14.5 | J71: =AVERAGE(H71:I71) -> 14.5 | K71: =G71*J71 -> 63.75106811 | L71: =ROUND(K71*2.2957*10^-5,4) -> 0.0015 | M71: =ROUND(IF(E71<$D$29,$E$29+$G$25*(E71-$D$29),IF(AND(E71>=$D$29,E71<=$F$29),$E$29+$G$25*(E71-$D$29)+$I$25*((E71-$D$29)/$F$25*2)^2,IF(AND(E71>$F$29,E71<$K$29),$E$25+$H$25*(E71-$D$25),IF(AND(E71>=$K$29,E71<=$M$29),$L$29+$N$25*(E71-$K$29)+$P$25*((E71-$K$29)/$M$25*2)^2,$L$25+$O$25*(E71-$K$25))))),3) -> 996.271 | N71: =ROUND(IF(F71<$D$29,$E$29+$G$25*(F71-$D$29),IF(AND(F71>=$D$29,F71<=$F$29),$E$29+$G$25*(F71-$D$29)+$I$25*((F71-$D$29)/$F$25*2)^2,IF(AND(F71>$F$29,F71<$K$29),$E$25+$H$25*(F71-$D$25),IF(AND(F71>=$K$29,F71<=$M$29),$L$29+$N$25*(F71-$K$29)+$P$25*((F71-$K$29)/$M$25*2)^2,$L$25+$O$25*(F71-$K$25))))),3) -> 996.27 | O71: =ROUND((M71-N71)/G71,4) -> 0.0002 | P71: 0.016 | Q71: 4 | R71: 4 | S71: 0.015 | T71: 0.9 | U71: =IF(M71=MIN(M71:N71),E71,F71) -> 5137.43 | V71: =MAX(ROUND(1.8*(1.1-T71)*G71^(1/2)/(ABS(O71)*100)^(1/3),3),10) -> 10 | W71: =ROUND($L$18/(V71+$L$19)^$L$20,3) -> 3.682 | X71: =L71 -> 0.0015 | Y71: =ROUND(T71*W71*X71,3) -> 0.005 | Z71: 0 | AA71: =SUM(Y71:Z71) -> 0.005 | AB71: =ABS(O71) -> 0.0002 | AC71: =ROUND((AA71/(0.56*(1/P71)/S71*AB71^(1/2)))^(3/8),3) -> 0.037 | AD71: =(1/P71)*AC71 -> 2.3125 | AE71: =$D$44 -> 35 | AF71: =AE71*AC71^(5/3) -> 0.143792947 | AG71: =CEILING(AA71/AF71,1) -> 1
C72: to End/A.S.
C74: Outside Side of the Bridge Rear Abutment - Final Condition
C75: HP Bk | E75: =H29 -> 5141.826625 | F75: 4854.02 | G75: =ABS(F75-E75) -> 287.8066254 | H75: 14.5 | I75: 14.5 | J75: =AVERAGE(H75:I75) -> 14.5 | K75: =G75*J75 -> 4173.196068 | L75: =ROUND(K75*2.2957*10^-5,4) -> 0.0958 | M75: =ROUND(IF(E75<$D$29,$E$29+$G$25*(E75-$D$29),IF(AND(E75>=$D$29,E75<=$F$29),$E$29+$G$25*(E75-$D$29)+$I$25*((E75-$D$29)/$F$25*2)^2,IF(AND(E75>$F$29,E75<$K$29),$E$25+$H$25*(E75-$D$25),IF(AND(E75>=$K$29,E75<=$M$29),$L$29+$N$25*(E75-$K$29)+$P$25*((E75-$K$29)/$M$25*2)^2,$L$25+$O$25*(E75-$K$25))))),3) -> 996.271 | N75: =ROUND(IF(F75<$D$29,$E$29+$G$25*(F75-$D$29),IF(AND(F75>=$D$29,F75<=$F$29),$E$29+$G$25*(F75-$D$29)+$I$25*((F75-$D$29)/$F$25*2)^2,IF(AND(F75>$F$29,F75<$K$29),$E$25+$H$25*(F75-$D$25),IF(AND(F75>=$K$29,F75<=$M$29),$L$29+$N$25*(F75-$K$29)+$P$25*((F75-$K$29)/$M$25*2)^2,$L$25+$O$25*(F75-$K$25))))),3) -> 992.278 | O75: =ROUND((M75-N75)/G75,4) -> 0.0139 | P75: 0.016 | Q75: 4 | R75: 4 | S75: 0.015 | T75: 0.9 | U75: =F75 -> 4854.02 | V75: =MAX(ROUND(1.8*(1.1-T75)*G75^(1/2)/(ABS(O75)*100)^(1/3),3),10) -> 10 | W75: =ROUND($L$18/(V75+$L$19)^$L$20,3) -> 3.682 | X75: =L75 -> 0.0958 | Y75: =ROUND(T75*W75*X75,3) -> 0.317 | Z75: 0 | AA75: =SUM(Y75:Z75) -> 0.317 | AB75: =ABS(O75) -> 0.0139 | AC75: =ROUND((AA75/(0.56*(1/P75)/S75*AB75^(1/2)))^(3/8),3) -> 0.079 | AD75: =(1/P75)*AC75 -> 4.9375 | AE75: =$D$44 -> 35 | AF75: =AE75*AC75^(5/3) -> 0.5090727649 | AG75: =CEILING(AA75/AF75,1) -> 1
C76: to End/A.S.
B77: 4. No scuppers required for FINAL condition.

Sheet Tables
J1: (L&D, Vol. 2, General Notes - Figs. 1101-2 through 1101-3)
J2: Zone | K2: Freq. | L2: a | M2: b | N2: c
J3: A | K3: 2 | L3: 46.184 | M3: 9 | N3: 0.859
K4: 5 | L4: 56.985 | M4: 10.25 | N4: 0.851
K5: 10 | L5: 64.167 | M5: 11 | N5: 0.842
K6: 25 | L6: 66.528 | M6: 11 | N6: 0.811
K7: 50 | L7: 65.702 | M7: 10.75 | N7: 0.782
K8: 100 | L8: 64.489 | M8: 10.5 | N8: 0.754
J9: B | K9: 2 | L9: 47.987 | M9: 9 | N9: 0.859
K10: 5 | L10: 60.684 | M10: 10.5 | N10: 0.858
K11: 10 | L11: 73.126 | M11: 12 | N11: 0.863
K12: 25 | L12: 75.841 | M12: 12 | N12: 0.833
K13: 50 | L13: 65.621 | M13: 10 | N13: 0.781
K14: 100 | L14: 85.047 | M14: 13.25 | N14: 0.806
J15: C | K15: 2 | L15: 56.299 | M15: 10 | N15: 0.876
K16: 5 | L16: 67.933 | M16: 11 | N16: 0.869
K17: 10 | L17: 84.55 | M17: 13 | N17: 0.882
K18: 25 | L18: 95.736 | M18: 14 | N18: 0.871
K19: 50 | L19: 96.783 | M19: 14 | N19: 0.85
K20: 100 | L20: 80.436 | M20: 11.5 | N20: 0.794
J21: D | K21: 2 | L21: 57.448 | M21: 10 | N21: 0.876
K22: 5 | L22: 67.933 | M22: 11 | N22: 0.869
K23: 10 | L23: 79.192 | M23: 12 | N23: 0.864
K24: 25 | L24: 87.886 | M24: 12.75 | N24: 0.849
K25: 50 | L25: 95.169 | M25: 13.5 | N25: 0.839
K26: 100 | L26: 91.982 | M26: 13 | N26: 0.81
